[Event "Baltic Zonal III Stage 2018"]
[Site "Liepaja"]
[Date "2018.07.13"]
[Round "6"]
[White "Kantans, Toms"]
[Black "Kanep, Meelis"]
[Result "1/2-1/2"]
[ECO "B32"]
[WhiteElo "2529"]
[BlackElo "2440"]
[Annotator "ChessBase"]
[PlyCount "128"]
[EventDate "2018.07.09"]
[EventType "swiss"]
[EventCountry "LAT"]
[SourceTitle "playchess.com"]
[Source "ChessBase"]
[SourceQuality "1"]
[TimeControl "5400+30"]

1. e4 {[%emt 0:00:00]} c5 {[%emt 0:01:04]} 2. Nf3 {[%emt 0:00:01]} Nc6 {[%emt 0:00:12]} 3. d4 {[%emt 0:00:17]} cxd4 {[%emt 0:00:08]} 4. Nxd4 {[%emt 0:00:05]} Qb6 {[%emt 0:00:09]} 5. Nb3 {[%emt 0:02:40]} Nf6 {[%emt 0:00:39]} 6. Nc3 {[%emt 0:02:32]} e6 {[%emt 0:00:31]} 7. Qe2 {[%emt 0:03:09]} Bb4 {[%emt 0:03:39]} 8. Bd2 {[%emt 0:00:07]} O-O {[%emt 0:00:40]} 9. a3 {[%emt 0:00:45]} Be7 {[%emt 0:00:18]} 10. O-O-O {[%emt 0:01:40]} d5 {[%emt 0:00:42]} 11. exd5 {[%emt 0:05:58]} Nxd5 {[%emt 0:02:24]} 12. Qf3 {[%emt 0:15:39]} Nxc3 {[%emt 0:09:49]} 13. Bxc3 {[%emt 0:00:05]} e5 {[%emt 0:00:08]} 14. Bc4 {[%emt 0:02:33]} Be6 {[%emt 0:14:02]} 15. Bxe6 {[%emt 0:00:24]} fxe6 {[%emt 0:00:04]} 16. Qg4 {[%emt 0:00:06]} Qxf2 {[%emt 0:00:35]} 17. Qxe6+ {[%emt 0:00:07]} Qf7 {[%emt 0:02:18]} 18. Qxf7+ {[%emt 0:07:49]} Rxf7 {[%emt 0:00:39]} 19. Nd2 {[%emt 0:02:22]} Rf2 {[%emt 0:08:46]} 20. g3 {[%emt 0:00:23]} Bg5 {[%emt 0:00:13]} 21. Kb1 {[%emt 0:00:28]} Bxd2 {[%emt 0:00:09]} 22. Rxd2 {[%emt 0:00:13]} Rxd2 {[%emt 0:01:51]} 23. Bxd2 {[%emt 0:00:02]} Rf8 {[%emt 0:02:24]} 24. Be3 {[%emt 0:00:15]} Rf3 {[%emt 0:00:44]} 25. Re1 {[%emt 0:00:17]} Kf7 {[%emt 0:02:20]} 26. c4 {[%emt 0:04:20]} Na5 {[%emt 0:09:41]} 27. Bxa7 {[%emt 0:03:38]} Nxc4 {[%emt 0:03:33]} 28. Kc2 {[%emt 0:00:06]} Ke6 {[%emt 0:03:05]} 29. a4 {[%emt 0:02:10]} Kd5 {[%emt 0:12:59]} 30. Rd1+ {[%emt 0:12:41]} Kc6 {[%emt 0:00:44]} 31. Rd8 {[%emt 0:00:51]} Ne3+ {[%emt 0:05:18]} 32. Kd3 {[%emt 0:01:53]} Ng4+ {[%emt 0:01:01]} 33. Kc4 {[%emt 0:00:09]} Ne3+ {[%emt 0:01:05]} 34. Bxe3 {[%emt 0:03:13]} Rxe3 {[%emt 0:00:04]} 35. Rc8+ {[%emt 0:00:08]} Kb6 {[%emt 0:01:18]} 36. Rg8 {[%emt 0:07:04]} Re2 {[%emt 0:01:35]} 37. Rxg7 {[%emt 0:01:19]} Rxh2 {[%emt 0:00:51]} 38. b4 {[%emt 0:02:36]} Kc6 {[%emt 0:04:49]} 39. a5 {[%emt 0:05:10]} Rc2+ {[%emt 0:00:29]} 40. Kd3 {[%emt 0:04:25]} Rb2 {[%emt 0:01:01]} 41. Kc3 {[%emt 0:00:29]} Rg2 {[%emt 0:01:56]} 42. g4 {[%emt 0:02:08]} e4 {[%emt 0:00:50]} 43. Kd4 {[%emt 0:04:17]} Rb2 {[%emt 0:00:22]} 44. Rxh7 {[%emt 0:00:16]} Rxb4+ {[%emt 0:00:22]} 45. Ke3 {[%emt 0:00:01]} Kd5 {[%emt 0:03:50]} 46. Rh5+ {[%emt 0:02:37]} Ke6 {[%emt 0:00:15]} 47. Rh6+ {[%emt 0:00:48]} Kd5 {[%emt 0:03:05]} 48. Rh5+ {[%emt 0:00:34]} Ke6 {[%emt 0:00:06]} 49. Rf5 {[%emt 0:00:28]} b6 {[%emt 0:00:43]} 50. axb6 {[%emt 0:01:07]} Rxb6 {[%emt 0:00:01]} 51. Kxe4 {[%emt 0:00:06]} Rb7 {[%emt 0:01:20]} 52. Kf4 {[%emt 0:00:09]} Rg7 {[%emt 0:00:14]} 53. Ra5 {[%emt 0:03:15]} Rg8 {[%emt 0:00:02]} 54. Rf5 {[%emt 0:02:14]} Rg7 {[%emt 0:00:03]} 55. Rb5 {[%emt 0:00:46]} Rg8 {[%emt 0:00:03]} 56. Rb6+ {[%emt 0:00:27]} Kf7 {[%emt 0:00:12]} 57. Kf5 {[%emt 0:00:21]} Ra8 {[%emt 0:01:00]} 58. Rb7+ {[%emt 0:00:11]} Kg8 {[%emt 0:00:15]} 59. Re7 {[%emt 0:00:20]} Ra6 {[%emt 0:00:27]} 60. Re6 {[%emt 0:00:05]} Rxe6 {[%emt 0:01:19]} 61. Kxe6 {[%emt 0:00:10]} Kg7 {[%emt 0:00:06]} 62. Kf5 {[%emt 0:00:22]} Kf7 {[%emt 0:00:05]} 63. Kg5 {[%emt 0:00:13]} Kg7 {[%emt 0:00:06]} 64. Kf5 {[%emt 0:00:03]} Kf7 {[%emt 0:00:06]} 1/2-1/2

[Event "Baltic Zonal III Stage 2018"]
[Site "Liepaja"]
[Date "2018.07.13"]
[Round "6"]
[White "Ladva, Ottomar"]
[Black "Malisauskas, Vidmantas"]
[Result "0-1"]
[ECO "D78"]
[WhiteElo "2498"]
[BlackElo "2432"]
[Annotator "RC"]
[PlyCount "122"]
[EventDate "2018.07.09"]
[EventType "swiss"]
[EventCountry "LAT"]
[SourceTitle "playchess.com"]
[Source "ChessBase"]
[SourceQuality "1"]
[TimeControl "5400+30"]

1. Nf3 {[%emt 0:01:10]} Nf6 {[%emt 0:06:29]} 2. d4 {[%emt 0:00:52]} g6 {[%emt 0:00:09]} 3. g3 {[%emt 0:00:05]} Bg7 {[%emt 0:00:11]} 4. Bg2 {[%emt 0:00:07]} d5 {[%emt 0:00:15]} 5. c4 {[%emt 0:01:51]} c6 {[%emt 0:00:23]} 6. O-O {[%emt 0:00:15]} O-O {[%emt 0:00:08]} 7. b3 {[%emt 0:00:37]} Ne4 {[%emt 0:07:08]} 8. Bb2 {[%emt 0:00:38]} Be6 {[%emt 0:05:33]} 9. Nbd2 {[%emt 0:03:41]} Nxd2 {[%emt 0:00:43]} 10. Nxd2 {[%emt 0:00:16]} dxc4 {[%emt 0:00:35]} 11. Nxc4 {[%emt 0:00:31]} Bd5 {[%emt 0:00:09]} 12. Qc2 {[%emt 0:08:16]} Bxg2 {[%emt 0:02:02]} 13. Kxg2 {[%emt 0:00:42]} Na6 {[%emt 0:01:13]} 14. Rad1 {[%emt 0:01:19]} f5 {[%emt 0:01:05]} 15. a3 {[%emt 0:01:47]} Nc7 {[%emt 0:00:35]} 16. f3 {[%emt 0:01:15]} f4 {[%emt 0:10:12]} 17. gxf4 {[%emt 0:02:57]} Nd5 {[%emt 0:00:43]} 18. Bc1 {[%emt 0:00:56]} Nxf4+ {[%emt 0:00:15]} 19. Bxf4 {[%emt 0:00:04]} Rxf4 {[%emt 0:00:13]} 20. e3 {[%emt 0:00:22]} Rh4 {[%emt 0:00:15]} 21. Qf2 {[%emt 0:12:56]} Rh5 {[%emt 0:03:14]} 22. f4 {[%emt 0:02:20]} Qd5+ {[%emt 0:07:49]} 23. Qf3 {[%emt 0:00:27]} Qxf3+ {[%emt 0:00:06]} 24. Rxf3 {[%emt 0:00:25]} Rd5 {[%emt 0:00:10]} 25. b4 {[%emt 0:01:08]} Rad8 {[%emt 0:07:20]} 26. Na5 {[%emt 0:09:13]} R8d7 {[%emt 0:00:15]} 27. Nb3 {[%emt 0:02:18]} e5 {[%emt 0:03:37]} 28. fxe5 {[%emt 0:12:42]} Bxe5 {[%emt 0:01:05]} 29. h3 {[%emt 0:00:37]} Bd6 {[%emt 0:04:04]} 30. e4 {[%emt 0:02:42]} Rb5 {[%emt 0:03:44]} 31. Kf2 {[%emt 0:03:04]} Bc7 {[%emt 0:01:50]} 32. Nc5 {[%emt 0:03:32]} Rf7 {[%emt 0:02:03]} 33. e5 {[%emt 0:02:51]} a5 {[%emt 0:00:30]} 34. Ke3 {[%emt 0:05:09]} axb4 {[%emt 0:01:59]} 35. a4 {[%emt 0:02:09]} Ra5 {[%emt 0:00:07]} 36. Rxf7 {[%emt 0:04:53]} Kxf7 {[%emt 0:00:47]} 37. Rf1+ {[%emt 0:00:06]} Ke8 {[%emt 0:00:57]} 38. Ke4 {[%emt 0:08:04]} Bb6 {[%emt 0:00:13]} 39. Nxb7 {[%emt 0:00:43]} Rd5 {[%emt 0:01:09]} 40. Nd6+ {[%emt 0:01:38]} Kd7 {[%emt 0:00:07]} 41. Nb5 {[%emt 0:00:54]} b3 {[%emt 0:01:48]} 42. Rf7+ {[%emt 0:01:26]} Ke6 {[%emt 0:03:18]} 43. Rf6+ {[%emt 0:00:16]} Ke7 {[%emt 0:00:14]} 44. Rxc6 {[%emt 0:01:52]} Rxb5 {[%emt 0:00:10]} 45. axb5 {[%emt 0:00:07]} b2 {[%emt 0:00:09]} 46. Rxb6 {[%emt 0:00:05]} b1=Q+ {[%emt 0:00:19]} 47. Kd5 {[%emt 0:00:03]} Qb3+ {[%emt 0:04:22]} 48. Kc5 {[%emt 0:00:45]} Qxh3 {[%emt 0:00:09]} 49. Rc6 {[%emt 0:00:44]} Qc3+ {[%emt 0:03:26]} 50. Kd5 {[%emt 0:00:02]} Qb4 {[%emt 0:00:19]} 51. Re6+ {[%emt 0:02:04]} Kf7 {[%emt 0:00:14]} 52. Rb6 {[%emt 0:01:34]} g5 {[%emt 0:02:04]} 53. Rb7+ {[%emt 0:00:03]} Kg6 {[%emt 0:00:21]} 54. b6 {[%emt 0:00:31]} g4 {[%emt 0:01:00]} 55. Rb8 {[%emt 0:00:05]} g3 {[%emt 0:02:14]} 56. b7 {[%emt 0:02:02]} Kf5 {[%emt 0:01:16]} 57. Kc6 {[%emt 0:00:46]} Qc4+ {[%emt 0:00:31]} 58. Kb6 {[%emt 0:00:05]} Qxd4+ {[%emt 0:00:12]} 59. Ka6 {[%emt 0:00:17]} Qc4+ {[%emt 0:00:51]} 60. Ka7 {[%emt 0:00:44]} g2 {[%emt 0:01:09]} 61. Rf8+ {[%emt 0:00:42]} Ke4 {[%emt 0:00:19]} 0-1

[Event "Baltic Zonal III Stage 2018"]
[Site "Liepaja"]
[Date "2018.07.13"]
[Round "6"]
[White "Seeman, Tarvo"]
[Black "Kveinys, Aloyzas"]
[Result "1/2-1/2"]
[ECO "B06"]
[WhiteElo "2414"]
[BlackElo "2537"]
[Annotator "ChessBase"]
[PlyCount "23"]
[EventDate "2018.07.09"]
[EventType "swiss"]
[EventCountry "LAT"]
[SourceTitle "playchess.com"]
[Source "ChessBase"]
[SourceQuality "1"]
[TimeControl "5400+30"]

1. Nf3 {[%emt 0:00:28]} g6 {[%emt 0:00:19]} 2. e4 {[%emt 0:01:31]} Bg7 {[%emt 0:00:30]} 3. d4 {[%emt 0:00:18]} d6 {[%emt 0:00:07]} 4. c3 {[%emt 0:00:13]} Nf6 {[%emt 0:01:01]} 5. Bd3 {[%emt 0:00:05]} O-O {[%emt 0:00:24]} 6. O-O {[%emt 0:00:05]} c5 {[%emt 0:07:13]} 7. h3 {[%emt 0:00:18]} Qc7 {[%emt 0:02:13]} 8. Re1 {[%emt 0:01:53]} Nc6 {[%emt 0:04:31]} 9. d5 {[%emt 0:02:00]} Na5 {[%emt 0:04:14]} 10. c4 {[%emt 0:00:49]} e6 {[%emt 0:00:08]} 11. Nc3 {[%emt 0:00:16]} exd5 {[%emt 0:00:32]} 12. exd5 {[%emt 0:00:25]} 1/2-1/2

[Event "Baltic Zonal III Stage 2018"]
[Site "Liepaja"]
[Date "2018.07.13"]
[Round "6"]
[White "Berzinsh, Roland"]
[Black "Vicas, Marijus"]
[Result "1-0"]
[ECO "A45"]
[WhiteElo "2410"]
[BlackElo "2183"]
[Annotator "NA"]
[PlyCount "65"]
[EventDate "2018.07.09"]
[EventType "swiss"]
[EventCountry "LAT"]
[SourceTitle "playchess.com"]
[Source "ChessBase"]
[SourceQuality "1"]
[TimeControl "5400+30"]

1. d4 {[%emt 0:00:00]} Nf6 {[%emt 0:00:00]} 2. Bf4 {[%emt 0:00:00]} e6 {[%emt 0:00:47]} 3. e3 {[%emt 0:00:04]} b6 {[%emt 0:00:16]} 4. Nf3 {[%emt 0:01:13]} Bb7 {[%emt 0:00:35]} 5. Nbd2 {[%emt 0:02:28]} Bd6 {[%emt 0:00:49] LiveBook: 13 Games} 6. Bg5 $11 {[%emt 0:06:23]} h6 {[%emt 0:04:27]} 7. Bxf6 {[%emt 0:00:25]} Qxf6 {[%emt 0:01:02]} 8. e4 {[%emt 0:00:28]} Qd8 {[%emt 0:01:44]} 9. Bd3 {[%emt 0:02:40]} Be7 {[%emt 0:03:20]} 10. Qe2 {[%emt 0:03:52]} d6 {[%emt 0:02:52]} 11. c3 {[%emt 0:03:42]} Nd7 {[%emt 0:00:38]} 12. Ba6 {[%emt 0:02:22]} Qc8 {[%emt 0:01:33]} 13. Bxb7 {[%emt 0:00:06]} Qxb7 {[%emt 0:00:04]} 14. O-O {[%emt 0:00:14]} g5 {[%emt 0:02:53]} 15. a4 {[%emt 0:05:29]} g4 {[%emt 0:08:45]} 16. Ne1 {[%emt 0:00:17]} h5 {[%emt 0:00:06]} 17. Nd3 {[%emt 0:04:25]} Bg5 {[%emt 0:02:03]} 18. f4 {[%emt 0:00:43]} gxf3 {[%emt 0:05:23]} 19. Nxf3 {[%emt 0:01:03]} Bf6 {[%emt 0:03:11]} 20. d5 {[%emt 0:04:44]} O-O-O {[%emt 0:03:56]} 21. Nb4 {[%emt 0:02:18]} Rde8 {[%emt 0:03:32]} 22. Qc4 {[%emt 0:00:35]} Rhg8 {[%emt 0:02:20]} 23. h3 {[%emt 0:06:07]} Nc5 {[%emt 0:07:29]} 24. Nc6 {[%emt 0:00:27]} a6 {[%emt 0:05:27]} 25. Nfd4 {[%emt 0:24:03]} Nxe4 {[%emt 0:02:29]} 26. Nxe6 {[%emt 0:00:21]} Nd2 {[%emt 0:07:12]} 27. Qf4 {[%emt 0:06:05]} Nxf1 {[%emt 0:00:46]} 28. Ng7 {[%emt 0:09:41]} Bxg7 {[%emt 0:18:38]} 29. Qf5+ {[%emt 0:01:41]} Re6 {[%emt 0:00:04]} 30. dxe6 {[%emt 0:00:44]} Bd4+ {[%emt 0:07:58]} 31. Kxf1 {[%emt 0:02:29]} Qxc6 {[%emt 0:00:12]} 32. exf7+ {[%emt 0:00:06]} Kb7 {[%emt 0:00:01]} 33. fxg8=Q {[%emt 0:00:24]} 1-0

[Event "Baltic Zonal III Stage 2018"]
[Site "Liepaja"]
[Date "2018.07.13"]
[Round "6"]
[White "Brazdzionis, Andrius"]
[Black "Haavamae, Henrik"]
[Result "1-0"]
[ECO "E04"]
[WhiteElo "2252"]
[BlackElo "2185"]
[Annotator "NA"]
[PlyCount "133"]
[EventDate "2018.07.09"]
[EventType "swiss"]
[EventCountry "LAT"]
[SourceTitle "playchess.com"]
[Source "ChessBase"]
[SourceQuality "1"]
[TimeControl "5400+30"]

1. d4 {[%emt 0:01:41]} Nf6 {[%emt 0:00:00]} 2. c4 {[%emt 0:00:21]} e6 {[%emt 0:00:06]} 3. Nf3 {[%emt 0:00:20]} d5 {[%emt 0:00:27]} 4. g3 {[%emt 0:01:25]} dxc4 {[%emt 0:01:09]} 5. Bg2 {[%emt 0:00:08]} Nbd7 {[%emt 0:00:30]} 6. Qa4 {[%emt 0:03:19]} a6 {[%emt 0:00:37]} 7. Qxc4 {[%emt 0:00:05]} b5 {[%emt 0:00:14]} 8. Qc6 {[%emt 0:00:04]} Rb8 $11 {[%emt 0:04:37] LiveBook: 163 Partien} 9. O-O {[%emt 0:04:46]} Bb7 {[%emt 0:00:51]} 10. Qc2 {[%emt 0:00:05]} c5 {[%emt 0:01:34]} 11. a4 {[%emt 0:03:56]} b4 {[%emt 0:06:01]} 12. Nbd2 {[%emt 0:18:29]} cxd4 {[%emt 0:02:20]} 13. Nxd4 {[%emt 0:00:29]} Bxg2 {[%emt 0:01:00]} 14. Kxg2 {[%emt 0:00:06]} Rc8 {[%emt 0:02:00]} 15. Qd1 {[%emt 0:05:07]} Be7 {[%emt 0:04:30]} 16. N2b3 {[%emt 0:05:15]} O-O {[%emt 0:02:14]} 17. e3 {[%emt 0:09:04]} Nc5 {[%emt 0:06:13]} 18. Qf3 {[%emt 0:05:23]} e5 {[%emt 0:06:55]} 19. Nxc5 {[%emt 0:00:10]} Bxc5 {[%emt 0:01:53]} 20. Nb3 {[%emt 0:01:42]} e4 {[%emt 0:06:19]} 21. Qe2 {[%emt 0:01:34]} Qd5 {[%emt 0:03:31]} 22. Qd1 {[%emt 0:05:09]} Qe5 {[%emt 0:03:02]} 23. Bd2 {[%emt 0:00:41]} Rfd8 {[%emt 0:04:28]} 24. Qe2 {[%emt 0:01:46]} Qxb2 {[%emt 0:07:41]} 25. Rab1 {[%emt 0:02:56]} Qa2 {[%emt 0:02:17]} 26. Nxc5 {[%emt 0:14:19]} Rxc5 {[%emt 0:00:39]} 27. Qxa6 {[%emt 0:00:29]} Rc2 {[%emt 0:04:48]} 28. Ra1 {[%emt 0:00:44]} Qd5 {[%emt 0:02:14]} 29. Bxb4 {[%emt 0:01:20]} Ng4 {[%emt 0:00:41]} 30. Qb6 {[%emt 0:00:12]} h5 {[%emt 0:08:36]} 31. h3 {[%emt 0:04:33]} Ne5 {[%emt 0:02:41]} 32. Rac1 {[%emt 0:01:51]} Rdc8 {[%emt 0:06:02]} 33. Rxc2 {[%emt 0:00:41]} Rxc2 {[%emt 0:00:02]} 34. Qd4 {[%emt 0:00:40]} Qxd4 {[%emt 0:01:27]} 35. exd4 {[%emt 0:00:00]} Nd3 {[%emt 0:00:22]} 36. Be1 {[%emt 0:02:01]} Re2 {[%emt 0:04:17]} 37. Bc3 {[%emt 0:00:01]} Rc2 {[%emt 0:01:51]} 38. Be1 {[%emt 0:00:01]} Rc4 {[%emt 0:00:45]} 39. a5 {[%emt 0:00:35]} Rxd4 {[%emt 0:00:20]} 40. g4 {[%emt 0:03:00]} h4 {[%emt 0:00:40]} 41. Bd2 {[%emt 0:00:22]} Ra4 {[%emt 0:01:47]} 42. Bg5 {[%emt 0:00:57]} Ra2 {[%emt 0:00:40]} 43. Kg1 {[%emt 0:00:22]} Ne5 {[%emt 0:00:49]} 44. Bd8 {[%emt 0:00:14]} f6 {[%emt 0:00:52]} 45. Bb6 {[%emt 0:01:02]} Kf7 {[%emt 0:01:02]} 46. Kg2 {[%emt 0:00:28]} Nd3 {[%emt 0:00:39]} 47. Rb1 {[%emt 0:00:37]} Nf4+ {[%emt 0:00:41]} 48. Kh2 {[%emt 0:00:06]} Nd5 {[%emt 0:00:33]} 49. Kg1 {[%emt 0:02:36]} Nf4 {[%emt 0:00:27]} 50. Kh2 {[%emt 0:00:11]} Ra3 {[%emt 0:00:13]} 51. Re1 {[%emt 0:02:03]} Rxh3+ {[%emt 0:00:51]} 52. Kg1 {[%emt 0:00:00]} Ra3 {[%emt 0:00:51]} 53. Rxe4 {[%emt 0:00:05]} g5 {[%emt 0:00:33]} 54. Rc4 {[%emt 0:01:58]} Ke6 {[%emt 0:00:33]} 55. Rc6+ {[%emt 0:00:12]} Ke5 {[%emt 0:00:28]} 56. a6 {[%emt 0:01:06]} Ke4 {[%emt 0:00:30]} 57. a7 {[%emt 0:00:34]} Kf3 {[%emt 0:00:35]} 58. Rc8 {[%emt 0:01:04]} Ne2+ {[%emt 0:00:29]} 59. Kh2 {[%emt 0:00:05]} f5 {[%emt 0:00:32]} 60. a8=Q+ {[%emt 0:00:30]} Rxa8 61. Rxa8 {[%emt 0:00:01]} fxg4 {[%emt 0:00:09]} 62. Ra3+ {[%emt 0:00:18]} Kf4 {[%emt 0:00:34]} 63. Be3+ {[%emt 0:00:07]} Kf3 {[%emt 0:00:51]} 64. Bxg5+ {[%emt 0:00:12]} Kxf2 {[%emt 0:00:05]} 65. Bxh4+ {[%emt 0:00:03]} g3+ {[%emt 0:00:09]} 66. Bxg3+ {[%emt 0:00:05]} Nxg3 {[%emt 0:00:08]} 67. Rxg3 {[%emt 0:00:03]} 1-0

[Event "Baltic Zonal III Stage 2018"]
[Site "Liepaja"]
[Date "2018.07.13"]
[Round "6"]
[White "Pedoson, Georg Aleksander"]
[Black "Rogule, Laura"]
[Result "1-0"]
[ECO "D45"]
[WhiteElo "2176"]
[BlackElo "2320"]
[Annotator "NA"]
[PlyCount "75"]
[EventDate "2018.07.09"]
[EventType "swiss"]
[EventCountry "LAT"]
[SourceTitle "playchess.com"]
[Source "ChessBase"]
[SourceQuality "1"]
[TimeControl "5400+30"]

1. d4 {[%emt 0:00:00]} d5 {[%emt 0:00:46]} 2. Nf3 {[%emt 0:00:00]} Nf6 {[%emt 0:00:51]} 3. c4 {[%emt 0:00:00]} e6 {[%emt 0:00:57]} 4. Nc3 {[%emt 0:00:04]} c6 {[%emt 0:02:52]} 5. e3 {[%emt 0:00:12]} Nbd7 {[%emt 0:00:40]} 6. Qc2 {[%emt 0:00:27]} Bd6 {[%emt 0:01:36]} 7. Bd2 $11 {[%emt 0:01:53] LiveBook: 484 Games} O-O {[%emt 0:07:31]} 8. h3 {[%emt 0:03:44]} Re8 {[%emt 0:16:23]} 9. g4 {[%emt 0:05:07]} e5 {[%emt 0:06:54]} 10. g5 {[%emt 0:07:04]} exd4 {[%emt 0:05:58]} 11. gxf6 {[%emt 0:04:12]} Qxf6 {[%emt 0:15:32]} 12. Nxd4 {[%emt 0:03:24]} Qxd4 {[%emt 0:00:05]} 13. O-O-O {[%emt 0:00:11]} Qe5 {[%emt 0:02:32]} 14. cxd5 {[%emt 0:03:55]} cxd5 {[%emt 0:00:25]} 15. Nb5 {[%emt 0:00:15]} Qe7 {[%emt 0:08:38]} 16. Nxd6 {[%emt 0:01:59]} Qxd6 {[%emt 0:00:05]} 17. Bc3 {[%emt 0:01:07]} Nf6 {[%emt 0:05:17]} 18. Rg1 {[%emt 0:01:32]} Bd7 {[%emt 0:02:02]} 19. Kb1 {[%emt 0:01:20]} g6 {[%emt 0:06:36]} 20. Rg5 {[%emt 0:03:14]} Rac8 {[%emt 0:06:38]} 21. Bg2 {[%emt 0:01:37]} Qe7 {[%emt 0:01:05]} 22. h4 {[%emt 0:06:19]} b5 {[%emt 0:02:25]} 23. Qd3 {[%emt 0:05:21]} b4 {[%emt 0:01:23]} 24. Be5 {[%emt 0:03:10]} Ng4 {[%emt 0:02:06]} 25. Bg3 {[%emt 0:00:29]} h6 {[%emt 0:01:29]} 26. Rxd5 {[%emt 0:05:58]} Bc6 {[%emt 0:00:15]} 27. h5 {[%emt 0:01:13]} Bxd5 {[%emt 0:00:49]} 28. Bxd5 {[%emt 0:00:05]} Kh7 {[%emt 0:01:13]} 29. hxg6+ {[%emt 0:04:02]} fxg6 {[%emt 0:00:02]} 30. Qd4 {[%emt 0:00:12]} Nf6 {[%emt 0:01:02]} 31. Bd6 {[%emt 0:00:23]} Qg7 {[%emt 0:00:29]} 32. Be5 {[%emt 0:00:04]} Rf8 {[%emt 0:00:23]} 33. e4 {[%emt 0:02:40]} Rcd8 {[%emt 0:00:17]} 34. Rc1 {[%emt 0:00:07]} Rd7 {[%emt 0:00:44]} 35. Rc6 {[%emt 0:00:44]} Rdf7 {[%emt 0:00:52]} 36. Bxf7 {[%emt 0:00:08]} Rxf7 {[%emt 0:00:25]} 37. Bxf6 {[%emt 0:00:06]} Qf8 {[%emt 0:00:08]} 38. e5 {[%emt 0:00:13]} 1-0

[Event "Baltic Zonal III Stage 2018"]
[Site "Liepaja"]
[Date "2018.07.13"]
[Round "7"]
[White "Kanep, Meelis"]
[Black "Berzinsh, Roland"]
[Result "1/2-1/2"]
[ECO "A09"]
[WhiteElo "2440"]
[BlackElo "2410"]
[Annotator "NA"]
[PlyCount "27"]
[EventDate "2018.07.09"]
[EventType "swiss"]
[EventCountry "LAT"]
[SourceTitle "playchess.com"]
[Source "ChessBase"]
[SourceQuality "1"]
[TimeControl "5400+30"]

1. Nf3 {[%emt 0:00:00]} d5 {[%emt 0:00:29]} 2. c4 {[%emt 0:00:00]} d4 {[%emt 0:00:11]} 3. b4 {[%emt 0:00:12]} g5 {[%emt 0:00:35]} 4. Bb2 {[%emt 0:00:31]} Bg7 {[%emt 0:00:17]} 5. Nxg5 {[%emt 0:00:28]} e5 {[%emt 0:00:39]} 6. Ne4 {[%emt 0:00:21]} f5 {[%emt 0:00:52]} 7. Nc5 {[%emt 0:00:23]} b6 {[%emt 0:05:20]} 8. Nd3 {[%emt 0:13:30]} Ne7 {[%emt 0:03:19]} 9. e3 {[%emt 0:10:07]} O-O {[%emt 0:04:05]} 10. exd4 {[%emt 0:02:26]} e4 {[%emt 0:04:00]} 11. Nf4 {[%emt 0:08:49]} Nbc6 {[%emt 0:03:28]} 12. c5 {[%emt 0:22:49]} Nxd4 {[%emt 0:01:32]} 13. Qc1 {[%emt 0:00:43]} Kh8 {[%emt 0:07:42]} 14. Na3 {[%emt 0:05:36]} 1/2-1/2

[Event "Baltic Zonal III Stage 2018"]
[Site "Liepaja"]
[Date "2018.07.13"]
[Round "7"]
[White "Bernotas, Arturs"]
[Black "Pedoson, Georg Aleksander"]
[Result "1-0"]
[ECO "C42"]
[WhiteElo "2413"]
[BlackElo "2176"]
[Annotator "NA RC"]
[PlyCount "75"]
[EventDate "2018.07.09"]
[EventType "swiss"]
[EventCountry "LAT"]
[SourceTitle "playchess.com"]
[Source "ChessBase"]
[SourceQuality "1"]
[TimeControl "5400+30"]

1. e4 {[%emt 0:00:18]} e5 {[%emt 0:00:00]} 2. Nf3 {[%emt 0:00:26]} Nf6 {[%emt 0:00:00]} 3. Nxe5 {[%emt 0:00:29]} d6 {[%emt 0:00:00]} 4. Nf3 {[%emt 0:00:12]} Nxe4 {[%emt 0:00:00]} 5. d4 {[%emt 0:00:27]} d5 {[%emt 0:00:22]} 6. Bd3 {[%emt 0:00:19]} Be7 {[%emt 0:00:08]} 7. O-O {[%emt 0:00:13]} Nc6 {[%emt 0:00:15]} 8. Nbd2 {[%emt 0:00:26]} Nxd2 {[%emt 0:02:09]} 9. Bxd2 {[%emt 0:03:08]} Bg4 {[%emt 0:01:20]} 10. c3 {[%emt 0:00:45]} O-O {[%emt 0:01:51]} 11. Bf4 {[%emt 0:00:29]} Qd7 {[%emt 0:04:16]} 12. Re1 {[%emt 0:01:52]} Rae8 {[%emt 0:02:00]} 13. b4 {[%emt 0:08:08]} Bf6 {[%emt 0:06:17]} 14. Qc2 {[%emt 0:01:43]} Bxf3 {[%emt 0:08:44]} 15. Bxh7+ {[%emt 0:07:37]} Kh8 {[%emt 0:00:10]} 16. Bf5 {[%emt 0:00:18]} Rxe1+ {[%emt 0:03:05]} 17. Rxe1 {[%emt 0:00:36]} Re8 {[%emt 0:00:12]} 18. Rxe8+ {[%emt 0:15:20]} Qxe8 {[%emt 0:00:08]} 19. gxf3 {[%emt 0:00:07]} g6 {[%emt 0:07:14]} 20. Bd3 {[%emt 0:01:51]} Qd7 {[%emt 0:00:17]} 21. Qe2 {[%emt 0:03:11]} a6 {[%emt 0:08:34]} 22. Kg2 {[%emt 0:00:20]} Kg7 {[%emt 0:00:41]} 23. b5 {[%emt 0:03:42]} Nd8 {[%emt 0:02:28]} 24. bxa6 {[%emt 0:05:37]} bxa6 {[%emt 0:00:05]} 25. Bxa6 {[%emt 0:04:47]} Ne6 {[%emt 0:00:06]} 26. Bg3 {[%emt 0:00:14]} Qc6 {[%emt 0:03:36]} 27. Qd3 {[%emt 0:02:59]} Qa4 {[%emt 0:00:25]} 28. Bc8 {[%emt 0:01:31]} Nf8 {[%emt 0:02:00]} 29. Qa6 {[%emt 0:05:11]} Qc2 {[%emt 0:00:47]} 30. Qa5 {[%emt 0:01:45]} c6 {[%emt 0:00:59]} 31. a4 {[%emt 0:01:06]} Nh7 {[%emt 0:01:14]} 32. h4 {[%emt 0:01:22]} Qd2 {[%emt 0:00:35]} 33. Qc5 {[%emt 0:02:47]} Qh6 {[%emt 0:00:07]} 34. Qxc6 {[%emt 0:01:09]} Bxh4 {[%emt 0:00:08]} 35. Bxh4 {[%emt 0:01:15]} Qxh4 {[%emt 0:00:06]} 36. Qxd5 {[%emt 0:00:19]} Nf6 {[%emt 0:00:07]} 37. Qe5 {[%emt 0:01:01]} Kf8 {[%emt 0:00:07]} 38. a5 {[%emt 0:01:49]} 1-0